[Event "55th Rubinstein Memorial-C 2019"]
[Site "Polanica-Zdroj"]
[Date "2019.08.25"]
[Round "9.1"]
[White "Majek, Kacper"]
[Black "Janzer, Hubert"]
[Result "0-1"]
[ECO "C00"]
[WhiteElo "1984"]
[BlackElo "1803"]
[Annotator "NA"]
[PlyCount "84"]
[EventDate "2019.08.17"]
[EventType "swiss"]
[EventCountry "POL"]
[SourceTitle "playchess.com"]
[Source "ChessBase"]
[SourceQuality "1"]
[TimeControl "40/5400+30:1800+30"]

1. e4 {[%emt 0:00:00]} e6 {[%emt 0:00:00]} 2. d3 {[%emt 0:00:00]} d5 {[%emt 0:00:00]} 3. Nd2 {[%emt 0:00:00]} c5 {[%emt 0:00:12]} 4. Ngf3 {[%emt 0:00:09]} Nc6 {[%emt 0:00:13]} 5. g3 {[%emt 0:00:07]} g6 {[%emt 0:01:07]} 6. Bg2 {[%emt 0:00:07]} Bg7 {[%emt 0:00:05]} 7. O-O {[%emt 0:00:10]} Nge7 {[%emt 0:01:01]} 8. Re1 {[%emt 0:00:24]} b6 {[%emt 0:00:51]} 9. Qe2 {[%emt 0:07:10]} Qc7 {[%emt 0:05:09]} 10. Nf1 {[%emt 0:04:35]} d4 {[%emt 0:03:58]} 11. e5 {[%emt 0:03:01]} Bb7 {[%emt 0:01:10]} 12. N1d2 {[%emt 0:05:35]} b5 {[%emt 0:14:19]} 13. a4 {[%emt 0:05:49]} a6 {[%emt 0:01:01]} 14. axb5 {[%emt 0:00:09]} axb5 {[%emt 0:00:05]} 15. Rxa8+ {[%emt 0:00:04]} Bxa8 {[%emt 0:00:04]} 16. Nb3 {[%emt 0:27:37]} Qb6 {[%emt 0:20:25]} 17. h4 {[%emt 0:03:35]} h6 {[%emt 0:01:10]} 18. Nbd2 {[%emt 0:04:57]} Qc7 {[%emt 0:05:08]} 19. g4 {[%emt 0:00:39]} Nd5 {[%emt 0:07:06]} 20. Nf1 {[%emt 0:01:34]} h5 {[%emt 0:02:50]} 21. gxh5 {[%emt 0:01:27]} Rxh5 {[%emt 0:00:13]} 22. Ng3 {[%emt 0:00:04]} Rh8 {[%emt 0:00:51]} 23. Bd2 {[%emt 0:00:28]} Bb7 {[%emt 0:00:47]} 24. Bg5 {[%emt 0:00:15]} Bh6 {[%emt 0:03:59]} 25. Bxh6 {[%emt 0:00:32]} Rxh6 {[%emt 0:00:11]} 26. Qd2 {[%emt 0:00:04]} Rh8 {[%emt 0:00:16]} 27. Qg5 {[%emt 0:07:20]} Nce7 {[%emt 0:04:37]} 28. Nd2 {[%emt 0:06:02]} Qa5 {[%emt 0:04:38]} 29. Nge4 {[%emt 0:02:51]} Rh5 {[%emt 0:01:40]} 30. Nd6+ {[%emt 0:04:06]} Kd7 {[%emt 0:03:32]} 31. Nxb7 {[%emt 0:00:21]} Qc7 {[%emt 0:00:14]} 32. Nxc5+ {[%emt 0:00:12]} Qxc5 {[%emt 0:00:17]} 33. Qg4 {[%emt 0:03:44]} Qxc2 {[%emt 0:01:05]} 34. Nf3 {[%emt 0:03:34]} Qxb2 {[%emt 0:02:34]} 35. Nxd4 {[%emt 0:00:54]} Nf5 {[%emt 0:00:36]} 36. Nxf5 {[%emt 0:00:01]} Rxf5 {[%emt 0:00:10]} 37. Qg3 {[%emt 0:01:05]} Nf4 {[%emt 0:00:52]} 38. Qe3 {[%emt 0:02:10]} Nxg2 {[%emt 0:00:52]} 39. Kxg2 {[%emt 0:00:01]} Ke7 {[%emt 0:04:34]} 40. Qc5+ {[%emt 0:00:10]} Ke8 {[%emt 0:00:15]} 41. Re4 {[%emt 0:31:26]} f6 {[%emt 0:32:09]} 42. exf6 {[%emt 0:00:24]} Rxc5 {[%emt 0:00:07]} 0-1

[Event "55th Rubinstein Memorial-C 2019"]
[Site "Polanica-Zdroj"]
[Date "2019.08.25"]
[Round "9.2"]
[White "Mike, Patryk"]
[Black "Sroka, Janusz"]
[Result "1-0"]
[ECO "B07"]
[WhiteElo "1840"]
[BlackElo "1875"]
[Annotator "NA"]
[PlyCount "85"]
[EventDate "2019.08.17"]
[EventType "swiss"]
[EventCountry "POL"]
[SourceTitle "playchess.com"]
[Source "ChessBase"]
[SourceQuality "1"]
[TimeControl "40/5400+30:1800+30"]

1. e4 {[%emt 0:00:00]} d6 {[%emt 0:00:00]} 2. d4 {[%emt 0:00:19]} Nf6 {[%emt 0:00:08]} 3. Nc3 {[%emt 0:00:56]} c6 {[%emt 0:01:51]} 4. Nf3 {[%emt 0:03:40]} Bg4 {[%emt 0:03:45]} 5. h3 {[%emt 0:09:00]} Bxf3 {[%emt 0:00:23]} 6. gxf3 {[%emt 0:05:05]} Nbd7 {[%emt 0:04:24]} 7. Bg2 {[%emt 0:04:35]} Qb6 {[%emt 0:03:23]} 8. Ne2 {[%emt 0:08:29]} e5 {[%emt 0:01:12]} 9. c3 {[%emt 0:03:30]} Be7 {[%emt 0:04:33]} 10. b3 {[%emt 0:01:40]} Qc7 {[%emt 0:12:11]} 11. f4 $11 {[%emt 0:04:30]} O-O-O {[%emt 0:07:33]} 12. Be3 {[%emt 0:03:53]} Rhe8 {[%emt 0:10:59]} 13. Qc2 {[%emt 0:03:12]} Kb8 {[%emt 0:09:26]} 14. O-O-O {[%emt 0:03:13]} g6 {[%emt 0:00:42]} 15. fxe5 {[%emt 0:07:39]} dxe5 {[%emt 0:00:12]} 16. dxe5 {[%emt 0:05:34]} Nxe5 {[%emt 0:00:24]} 17. f4 {[%emt 0:00:59]} Ned7 {[%emt 0:01:36]} 18. Kb1 {[%emt 0:06:43]} Bc5 {[%emt 0:01:47]} 19. Bc1 {[%emt 0:01:07]} Qb6 {[%emt 0:06:12]} 20. Rhf1 {[%emt 0:05:39]} Be3 {[%emt 0:07:56]} 21. Bxe3 {[%emt 0:04:24]} Qxe3 {[%emt 0:00:08]} 22. Rd4 {[%emt 0:00:36]} Nd5 {[%emt 0:14:50]} 23. Rd3 {[%emt 0:01:09]} Nc5 {[%emt 0:00:58]} 24. Rxe3 {[%emt 0:04:16]} Nxe3 {[%emt 0:00:02]} 25. Qc1 {[%emt 0:00:56]} Nxg2 {[%emt 0:02:31]} 26. Rg1 {[%emt 0:02:15]} Nh4 {[%emt 0:01:58]} 27. e5 {[%emt 0:02:16]} Nd3 {[%emt 0:02:27]} 28. Qe3 {[%emt 0:01:09]} Nf5 {[%emt 0:00:42]} 29. Qf3 {[%emt 0:01:57]} Nc5 {[%emt 0:00:17]} 30. Nd4 {[%emt 0:01:00]} Nxd4 {[%emt 0:00:53]} 31. cxd4 {[%emt 0:00:05]} Ne6 {[%emt 0:00:03]} 32. Rd1 {[%emt 0:00:52]} Nxd4 {[%emt 0:00:23]} 33. Qg4 {[%emt 0:01:33]} h5 {[%emt 0:00:15]} 34. Qh4 {[%emt 0:00:38]} Kc7 {[%emt 0:01:10]} 35. Qf6 {[%emt 0:00:30]} Rd7 {[%emt 0:01:40]} 36. Rxd4 {[%emt 0:00:48]} Rxd4 {[%emt 0:00:02]} 37. Qxf7+ {[%emt 0:00:12]} Kd8 {[%emt 0:00:11]} 38. Qxg6 {[%emt 0:00:23]} Re7 {[%emt 0:01:21]} 39. f5 {[%emt 0:01:03]} c5 {[%emt 0:00:29]} 40. f6 {[%emt 0:02:48]} Re8 {[%emt 0:00:30]} 41. f7 {[%emt 0:30:15]} Rf8 {[%emt 0:30:30]} 42. Qg7 Ke7 43. Qf6+ 1-0

[Event "55th Rubinstein Memorial-C 2019"]
[Site "Polanica-Zdroj"]
[Date "2019.08.25"]
[Round "9.3"]
[White "Andrushchiak, Maxim"]
[Black "Kaliszuk, Kamil"]
[Result "1-0"]
[ECO "D01"]
[WhiteElo "1826"]
[BlackElo "1853"]
[Annotator "NA"]
[PlyCount "133"]
[EventDate "2019.08.17"]
[EventType "swiss"]
[EventCountry "POL"]
[SourceTitle "playchess.com"]
[Source "ChessBase"]
[SourceQuality "1"]
[TimeControl "40/5400+30:1800+30"]

1. d4 {[%emt 0:00:00]} Nf6 {[%emt 0:00:00]} 2. Nc3 {[%emt 0:00:00]} d5 {[%emt 0:00:31]} 3. Bg5 {[%emt 0:00:27]} h6 {[%emt 0:00:34]} 4. Bxf6 {[%emt 0:00:15]} exf6 {[%emt 0:00:10]} 5. e3 {[%emt 0:00:26]} c6 {[%emt 0:00:24]} 6. Bd3 {[%emt 0:02:46]} Nd7 {[%emt 0:00:27]} 7. Nf3 {[%emt 0:00:41]} g6 {[%emt 0:01:21]} 8. O-O {[%emt 0:00:12]} f5 {[%emt 0:00:24]} 9. Ne2 {[%emt 0:00:15]} Bd6 {[%emt 0:11:24]} 10. b3 {[%emt 0:01:35]} Nf6 {[%emt 0:08:12]} 11. c4 {[%emt 0:00:23]} O-O {[%emt 0:00:33]} 12. Nc3 {[%emt 0:04:13]} Bd7 {[%emt 0:10:07]} 13. cxd5 {[%emt 0:00:49]} Nxd5 {[%emt 0:02:14]} 14. Nxd5 {[%emt 0:00:07]} cxd5 {[%emt 0:00:02]} 15. Qd2 {[%emt 0:08:16]} Re8 {[%emt 0:12:11]} 16. Ne1 {[%emt 0:06:00]} f4 {[%emt 0:11:36]} 17. exf4 {[%emt 0:02:23]} Qf6 $11 {[%emt 0:00:55]} 18. f5 {[%emt 0:00:49]} g5 {[%emt 0:09:09]} 19. Nc2 {[%emt 0:02:03]} Bxf5 {[%emt 0:09:26]} 20. Bxf5 {[%emt 0:00:45]} Qxf5 {[%emt 0:00:02]} 21. Ne3 {[%emt 0:00:17]} Qd7 {[%emt 0:07:46]} 22. Qa5 {[%emt 0:01:45]} Red8 {[%emt 0:00:43]} 23. g3 {[%emt 0:01:26]} Bc7 {[%emt 0:00:39]} 24. Qd2 {[%emt 0:00:38]} Kh8 {[%emt 0:06:08]} 25. Qd3 {[%emt 0:02:44]} Qe6 {[%emt 0:01:40]} 26. Nf5 {[%emt 0:07:42]} Qe4 {[%emt 0:01:45]} 27. Qxe4 {[%emt 0:00:22]} dxe4 {[%emt 0:00:02]} 28. Nxh6 {[%emt 0:00:09]} Kg7 {[%emt 0:00:16]} 29. Rac1 {[%emt 0:02:20]} Bb6 {[%emt 0:02:38]} 30. Nf5+ {[%emt 0:02:33]} Kg6 {[%emt 0:00:57]} 31. g4 {[%emt 0:02:51]} Bxd4 {[%emt 0:00:42]} 32. Rfe1 {[%emt 0:02:18]} e3 {[%emt 0:00:42]} 33. Nxe3 {[%emt 0:03:33]} Bxe3 {[%emt 0:00:12]} 34. Rxe3 {[%emt 0:00:19]} Rac8 {[%emt 0:02:11]} 35. Rxc8 {[%emt 0:06:09]} Rxc8 {[%emt 0:00:00]} 36. Re7 {[%emt 0:00:09]} Rb8 {[%emt 0:00:26]} 37. Kg2 {[%emt 0:01:35]} a5 {[%emt 0:00:33]} 38. Kg3 {[%emt 0:02:58]} b6 {[%emt 0:01:11]} 39. Rc7 {[%emt 0:00:19]} f6 {[%emt 0:00:29]} 40. Rc6 {[%emt 0:00:24]} Rb7 {[%emt 0:00:37]} 41. h4 {[%emt 0:32:33]} gxh4+ {[%emt 0:30:28]} 42. Kxh4 {[%emt 0:00:06]} Rh7+ {[%emt 0:00:05]} 43. Kg3 {[%emt 0:00:08]} Rb7 {[%emt 0:00:02]} 44. Kf4 {[%emt 0:00:49]} Kg7 {[%emt 0:01:02]} 45. Kf5 {[%emt 0:00:41]} Rd7 {[%emt 0:00:09]} 46. Rxf6 {[%emt 0:05:49]} Rd5+ {[%emt 0:00:13]} 47. Ke4 {[%emt 0:00:06]} Rd2 {[%emt 0:00:05]} 48. g5 {[%emt 0:01:49]} Rxa2 {[%emt 0:00:18]} 49. f4 {[%emt 0:00:06]} b5 {[%emt 0:00:15]} 50. Rb6 {[%emt 0:01:23]} b4 {[%emt 0:00:26]} 51. Kf5 {[%emt 0:01:08]} Ra3 {[%emt 0:00:29]} 52. Rb7+ {[%emt 0:00:07]} Kf8 {[%emt 0:00:10]} 53. Kf6 {[%emt 0:00:09]} Ke8 {[%emt 0:00:07]} 54. Ra7 {[%emt 0:03:13]} Rxb3 {[%emt 0:00:20]} 55. Rxa5 {[%emt 0:00:08]} Rc3 {[%emt 0:00:05]} 56. Rb5 {[%emt 0:00:08]} b3 {[%emt 0:00:19]} 57. Rb7 {[%emt 0:00:22]} Rc6+ {[%emt 0:00:16]} 58. Kf5 {[%emt 0:00:14]} Rc5+ {[%emt 0:00:13]} 59. Kg4 {[%emt 0:00:07]} Rc3 {[%emt 0:01:10]} 60. f5 {[%emt 0:00:31]} Rc4+ {[%emt 0:00:33]} 61. Kh5 {[%emt 0:00:54]} Rc5 {[%emt 0:00:37]} 62. Kg6 {[%emt 0:00:11]} Kf8 {[%emt 0:00:21]} 63. Rxb3 {[%emt 0:00:15]} Rc6+ {[%emt 0:00:06]} 64. f6 {[%emt 0:00:09]} Rc8 {[%emt 0:00:01]} 65. Rb7 {[%emt 0:00:09]} Kg8 {[%emt 0:00:06]} 66. Rg7+ {[%emt 0:00:07]} Kh8 {[%emt 0:00:04]} 67. Rh7+ {[%emt 0:00:05]} 1-0

[Event "55th Rubinstein Memorial-C 2019"]
[Site "Polanica-Zdroj"]
[Date "2019.08.25"]
[Round "9.4"]
[White "Szczesniak, Andrzej"]
[Black "Szydelko, Michal"]
[Result "1-0"]
[ECO "D37"]
[WhiteElo "1954"]
[BlackElo "1752"]
[Annotator "NA"]
[PlyCount "85"]
[EventDate "2019.08.17"]
[EventType "swiss"]
[EventCountry "POL"]
[SourceTitle "playchess.com"]
[Source "ChessBase"]
[SourceQuality "1"]
[TimeControl "40/5400+30:1800+30"]

1. d4 {[%emt 0:00:00]} d5 {[%emt 0:00:00]} 2. c4 {[%emt 0:00:00]} e6 {[%emt 0:00:00]} 3. Nc3 {[%emt 0:00:07]} Nf6 {[%emt 0:00:05]} 4. Nf3 {[%emt 0:00:13]} Be7 {[%emt 0:00:39]} 5. Bf4 {[%emt 0:02:12]} O-O {[%emt 0:00:46]} 6. e3 {[%emt 0:00:12]} b6 {[%emt 0:03:25]} 7. cxd5 {[%emt 0:00:37]} exd5 {[%emt 0:00:52]} 8. Bd3 {[%emt 0:04:47]} Bb7 {[%emt 0:01:32]} 9. O-O {[%emt 0:04:04]} Nbd7 {[%emt 0:04:23]} 10. h3 {[%emt 0:15:57]} c5 {[%emt 0:03:21]} 11. Rc1 {[%emt 0:03:00]} Rc8 {[%emt 0:04:11]} 12. Qe2 {[%emt 0:07:58]} c4 {[%emt 0:14:30]} 13. Bb1 {[%emt 0:01:44]} a6 {[%emt 0:02:03]} 14. a4 {[%emt 0:00:46]} Bc6 {[%emt 0:01:34]} 15. Ne5 $14 {[%emt 0:04:20]} Nxe5 {[%emt 0:10:39]} 16. dxe5 {[%emt 0:00:27]} Nd7 {[%emt 0:00:13]} 17. Rcd1 {[%emt 0:04:56]} Nc5 {[%emt 0:02:31]} 18. Bf5 {[%emt 0:09:25]} Ra8 {[%emt 0:20:08]} 19. Bc2 {[%emt 0:06:04]} Rc8 {[%emt 0:07:18]} 20. Bf5 {[%emt 0:16:04]} Ra8 {[%emt 0:00:15]} 21. Bg3 {[%emt 0:04:55]} g6 {[%emt 0:11:55]} 22. Bc2 {[%emt 0:00:11]} Rc8 {[%emt 0:00:15]} 23. Nxd5 {[%emt 0:03:25]} Bxd5 {[%emt 0:00:12]} 24. e4 {[%emt 0:00:08]} Nd3 {[%emt 0:00:15]} 25. exd5 {[%emt 0:00:45]} Nxb2 {[%emt 0:01:26]} 26. Rb1 {[%emt 0:03:01]} Ba3 {[%emt 0:01:40]} 27. d6 {[%emt 0:01:16]} b5 {[%emt 0:00:59]} 28. e6 {[%emt 0:01:14]} fxe6 {[%emt 0:03:05]} 29. Qxe6+ {[%emt 0:00:02]} Rf7 {[%emt 0:00:00]} 30. Be4 {[%emt 0:00:20]} Qd7 {[%emt 0:02:33]} 31. Bd5 {[%emt 0:00:33]} Qxe6 {[%emt 0:00:11]} 32. Bxe6 {[%emt 0:00:02]} Rd8 {[%emt 0:00:09]} 33. Rfe1 {[%emt 0:00:57]} Nd3 {[%emt 0:00:13]} 34. Bxf7+ {[%emt 0:00:16]} Kxf7 {[%emt 0:00:01]} 35. Re7+ {[%emt 0:00:01]} Kg8 {[%emt 0:00:54]} 36. axb5 {[%emt 0:03:33]} c3 {[%emt 0:03:59]} 37. Rc7 {[%emt 0:00:57]} Bc5 {[%emt 0:00:45]} 38. b6 {[%emt 0:03:07]} c2 {[%emt 0:01:03]} 39. Rf1 {[%emt 0:00:07]} Rf8 {[%emt 0:00:15]} 40. b7 {[%emt 0:00:30]} a5 {[%emt 0:01:12]} 41. Rc8 {[%emt 0:30:14]} Ba7 {[%emt 0:30:09]} 42. d7 {[%emt 0:00:14]} c1=Q {[%emt 0:00:23]} 43. Rxf8+ {[%emt 0:00:22]} 1-0

[Event "55th Rubinstein Memorial-C 2019"]
[Site "Polanica-Zdroj"]
[Date "2019.08.25"]
[Round "9.5"]
[White "Kroliczek, Gabriela"]
[Black "Bartoszewicz, Marcin"]
[Result "1/2-1/2"]
[ECO "B53"]
[WhiteElo "1787"]
[BlackElo "1950"]
[Annotator "NA"]
[PlyCount "73"]
[EventDate "2019.08.17"]
[EventType "swiss"]
[EventCountry "POL"]
[SourceTitle "playchess.com"]
[Source "ChessBase"]
[SourceQuality "1"]
[TimeControl "40/5400+30:1800+30"]

1. e4 {[%emt 0:00:00]} c5 {[%emt 0:00:13]} 2. Nf3 {[%emt 0:00:00]} d6 {[%emt 0:01:11]} 3. d4 {[%emt 0:00:00]} cxd4 {[%emt 0:00:42]} 4. Qxd4 {[%emt 0:00:00]} Nc6 {[%emt 0:04:22]} 5. Bb5 {[%emt 0:00:00]} Bd7 {[%emt 0:01:19]} 6. Bxc6 {[%emt 0:00:02]} Bxc6 {[%emt 0:01:17]} 7. Nc3 {[%emt 0:01:18]} Nf6 {[%emt 0:03:35]} 8. Bg5 {[%emt 0:00:16]} e6 {[%emt 0:04:39]} 9. O-O-O {[%emt 0:00:28]} Be7 {[%emt 0:03:27]} 10. Kb1 {[%emt 0:00:28]} Qa5 {[%emt 0:10:57]} 11. Rhe1 {[%emt 0:00:43]} O-O {[%emt 0:01:07]} 12. Qd2 {[%emt 0:00:26]} Kh8 {[%emt 0:05:06]} 13. Nd4 {[%emt 0:00:55]} Rac8 {[%emt 0:02:36] B53: Sicilian: 2...d6: Lines with Qxd4} (13... Rfd8 14. f4 h6 15. Bxf6 Bxf6 16. g4 Qc5 17. f5 Bxd4 18. Qxd4 Qxd4 19. Rxd4 Rd7 20. a4 Rad8 21. b4 b6 {½-½ (31) Ghaem Maghami,E (2537)-Nguyen,N (2618) Hamedan 2018}) 14. f3 {[%emt 0:00:25]} d5 $146 {[%emt 0:05:50]} ({Predecessor:} 14... a6 15. h4 b5 16. g4 Bb7 17. Be3 Nd7 18. Bg5 Nf6 19. Be3 Nd7 {½-½ (19) Boros,D (2469)-Torres Rosas,L (2331) South Padre Island 2014}) 15. e5 {[%emt 0:07:17]} Ng8 {[%emt 0:00:30]} 16. Bxe7 {[%emt 0:00:12]} Nxe7 {[%emt 0:00:08]} 17. h4 {[%emt 0:00:50]} Qc5 {[%emt 0:02:01]} 18. Qg5 {[%emt 0:07:15]} Be8 {[%emt 0:04:44]} 19. h5 {[%emt 0:06:27]} h6 {[%emt 0:01:19]} 20. Qd2 {[%emt 0:01:56]} b5 {[%emt 0:00:31]} (20... Nc6 $1 $14) 21. g4 {[%emt 0:01:22]} b4 $16 {[%emt 0:01:41]} 22. Nce2 {[%emt 0:00:09]} Ng8 {[%emt 0:05:33]} 23. f4 {[%emt 0:03:48]} Qe7 {[%emt 0:06:48]} 24. Ng3 {[%emt 0:04:59]} Bd7 {[%emt 0:00:59]} 25. f5 {[%emt 0:03:08]} Qg5 {[%emt 0:00:33]} 26. Nge2 {[%emt 0:30:37]} Qxd2 {[%emt 0:07:22]} 27. Rxd2 {[%emt 0:00:04]} Ne7 {[%emt 0:01:32]} 28. Rf1 {[%emt 0:01:06]} Rfe8 {[%emt 0:08:29]} 29. f6 {[%emt 0:04:54]} gxf6 {[%emt 0:01:34]} 30. Rxf6 {[%emt 0:02:26]} Kg7 {[%emt 0:00:29]} 31. g5 {[%emt 0:06:42]} Ng8 {[%emt 0:00:57]} 32. gxh6+ {[%emt 0:00:46]} Nxh6 {[%emt 0:00:09]} 33. Nf4 {[%emt 0:01:39]} Kh7 {[%emt 0:00:23]} 34. Nf3 {[%emt 0:02:29]} Rg8 {[%emt 0:00:20]} 35. Nh3 {[%emt 0:00:10]} Rg4 {[%emt 0:02:04]} 36. Nfg5+ {[%emt 0:02:06]} Kg7 {[%emt 0:00:10]} 37. Rdf2 {[%emt 0:05:08]} 1/2-1/2

[Event "55th Rubinstein Memorial-C 2019"]
[Site "Polanica-Zdroj"]
[Date "2019.08.25"]
[Round "9.6"]
[White "Kardys, Zbigniew"]
[Black "Witkowski, Krzysztof"]
[Result "1/2-1/2"]
[ECO "B76"]
[WhiteElo "1949"]
[BlackElo "1707"]
[Annotator "NA"]
[PlyCount "60"]
[EventDate "2019.08.17"]
[EventType "swiss"]
[EventCountry "POL"]
[SourceTitle "playchess.com"]
[Source "ChessBase"]
[SourceQuality "1"]
[TimeControl "40/5400+30:1800+30"]

1. e4 {[%emt 0:00:00]} c5 {[%emt 0:00:00]} 2. Nf3 {[%emt 0:00:00]} Nc6 {[%emt 0:00:00]} 3. Nc3 {[%emt 0:00:26]} g6 {[%emt 0:02:44]} 4. d4 {[%emt 0:03:33]} cxd4 {[%emt 0:00:09]} 5. Nxd4 {[%emt 0:00:02]} Bg7 {[%emt 0:00:12]} 6. Be3 {[%emt 0:00:06]} d6 {[%emt 0:00:58]} 7. Qd2 {[%emt 0:03:44]} Nf6 {[%emt 0:03:18]} 8. f3 {[%emt 0:00:05]} O-O {[%emt 0:01:55]} 9. O-O-O {[%emt 0:00:47]} Qa5 {[%emt 0:06:09]} 10. Kb1 {[%emt 0:03:50]} Nxd4 {[%emt 0:16:59]} 11. Bxd4 {[%emt 0:01:01]} Nd7 {[%emt 0:01:41]} 12. Nd5 {[%emt 0:06:04]} Qd8 {[%emt 0:01:24]} 13. Bxg7 {[%emt 0:10:07]} Kxg7 {[%emt 0:00:39]} 14. h4 {[%emt 0:05:36]} h6 {[%emt 0:07:51]} 15. h5 {[%emt 0:11:18]} g5 {[%emt 0:06:15]} 16. f4 {[%emt 0:01:55]} gxf4 {[%emt 0:01:03]} 17. Qxf4 {[%emt 0:02:13]} Ne5 {[%emt 0:01:44]} 18. g4 {[%emt 0:13:09]} f6 {[%emt 0:10:31]} 19. Rg1 {[%emt 0:04:19]} Kh7 {[%emt 0:06:03]} 20. Be2 {[%emt 0:03:18]} Be6 {[%emt 0:05:02]} 21. Rg3 {[%emt 0:03:24]} Rc8 {[%emt 0:04:17]} 22. Rd2 {[%emt 0:04:13]} Qd7 {[%emt 0:02:05]} 23. Ne3 {[%emt 0:00:55]} Rg8 {[%emt 0:01:30]} 24. Nf5 {[%emt 0:02:47]} Rg5 {[%emt 0:02:56]} 25. a3 {[%emt 0:04:44]} Rc5 {[%emt 0:04:54]} 26. Qe3 {[%emt 0:02:31]} b6 {[%emt 0:01:03]} 27. Qd4 {[%emt 0:05:45]} Nc6 {[%emt 0:04:19]} 28. Qe3 {[%emt 0:00:49]} Ne5 {[%emt 0:00:07]} 29. Qd4 {[%emt 0:00:27]} Nc6 {[%emt 0:00:06]} 30. Qe3 {[%emt 0:00:55]} Ne5 {[%emt 0:00:10]} 1/2-1/2

[Event "55th Rubinstein Memorial-C 2019"]
[Site "Polanica-Zdroj"]
[Date "2019.08.25"]
[Round "9.7"]
[White "Matuszczyk, Mateusz"]
[Black "Tokmantsev, Ivan"]
[Result "1/2-1/2"]
[ECO "C13"]
[WhiteElo "1808"]
[BlackElo "1918"]
[Annotator "NA"]
[PlyCount "74"]
[EventDate "2019.08.17"]
[EventType "swiss"]
[EventCountry "POL"]
[SourceTitle "playchess.com"]
[Source "ChessBase"]
[SourceQuality "1"]
[TimeControl "40/5400+30:1800+30"]

1. e4 {[%emt 0:00:00]} e6 {[%emt 0:03:01]} 2. d4 {[%emt 0:00:00]} d5 {[%emt 0:00:06]} 3. Nc3 {[%emt 0:00:00]} Nf6 {[%emt 0:00:41]} 4. Bg5 {[%emt 0:00:00]} Be7 {[%emt 0:00:11]} 5. e5 {[%emt 0:00:00]} Nfd7 {[%emt 0:00:15]} 6. h4 {[%emt 0:00:00]} h6 {[%emt 0:00:06]} 7. Bxe7 {[%emt 0:00:41]} Qxe7 {[%emt 0:00:10]} 8. Qd2 $146 {[%emt 0:00:33] C14: French: Classical System: 4 Bg5 Be7 main line} (8. Nb5 Nb6 9. c3 a6 10. Na3 c5 11. Nc2 Nc6 12. Ne2 Bd7 13. Nf4 O-O-O 14. g3 Kb8 15. Nd3 Na4 {0-1 (48) Maze,S (2602)-Nisipeanu,L (2674) Germany 2019}) ({Predecessor:} 8. f4 a6 9. Nf3 c5 {½-½ (66) Ojeda Venegas,T (1972)-Grospietro,P (1608) Montevideo 2017}) 8... a6 {[%emt 0:00:08]} 9. f4 {[%emt 0:00:40]} c5 {[%emt 0:00:15]} 10. Nf3 {[%emt 0:01:07]} Nc6 {[%emt 0:00:49]} 11. O-O-O {[%emt 0:02:18]} b5 {[%emt 0:01:08]} 12. dxc5 {[%emt 0:03:41]} Nxc5 {[%emt 0:00:31]} 13. Nd4 {[%emt 0:06:10]} Bb7 {[%emt 0:01:43]} 14. Nxc6 {[%emt 0:04:34]} Bxc6 {[%emt 0:00:10]} 15. Ne2 {[%emt 0:06:20]} Ne4 {[%emt 0:00:17]} 16. Qe3 {[%emt 0:03:47]} b4 {[%emt 0:06:57]} 17. Nd4 {[%emt 0:01:50]} Bd7 {[%emt 0:00:25]} 18. Bd3 {[%emt 0:03:37]} Nc5 {[%emt 0:00:41]} 19. g4 {[%emt 0:05:45]} h5 {[%emt 0:09:24]} 20. Rdg1 $16 {[%emt 0:06:13]} hxg4 {[%emt 0:01:36]} 21. Rxg4 {[%emt 0:00:09]} g6 {[%emt 0:00:13]} 22. h5 {[%emt 0:02:41]} gxh5 {[%emt 0:00:21]} 23. Rxh5 {[%emt 0:00:46]} Nxd3+ {[%emt 0:10:37]} 24. Qxd3 {[%emt 0:02:09]} Rxh5 {[%emt 0:00:31]} 25. Rg8+ {[%emt 0:00:12]} Qf8 {[%emt 0:00:05]} 26. Rxf8+ {[%emt 0:01:43]} Kxf8 {[%emt 0:00:06]} 27. Qf3 {[%emt 0:10:06]} Rh8 {[%emt 0:00:46]} 28. f5 {[%emt 0:00:22]} Rh6 {[%emt 0:07:51]} 29. Qg2 {[%emt 0:10:01]} Rc8 {[%emt 0:05:35]} 30. f6 {[%emt 0:00:47]} Rg6 {[%emt 0:00:11]} 31. Qf2 {[%emt 0:04:41]} Ba4 {[%emt 0:13:20]} 32. b3 {[%emt 0:00:45]} Bb5 {[%emt 0:01:10]} 33. Qd2 {[%emt 0:02:43]} Rc3 {[%emt 0:01:22]} 34. Kb2 {[%emt 0:02:46]} Bf1 {[%emt 0:09:59]} 35. Qf4 {[%emt 0:01:21]} Bd3 {[%emt 0:13:11]} 36. cxd3 {[%emt 0:04:57]} Rg2+ {[%emt 0:00:20]} 37. Kb1 {[%emt 0:01:46]} Rg1+ {[%emt 0:00:10] Nxe6+} 1/2-1/2

[Event "55th Rubinstein Memorial-C 2019"]
[Site "Polanica-Zdroj"]
[Date "2019.08.25"]
[Round "9.8"]
[White "Pyka, Roman"]
[Black "Budzisz, Adrian"]
[Result "1-0"]
[ECO "A39"]
[WhiteElo "1860"]
[BlackElo "1631"]
[Annotator "NA"]
[PlyCount "47"]
[EventDate "2019.08.17"]
[EventType "swiss"]
[EventCountry "POL"]
[SourceTitle "playchess.com"]
[Source "ChessBase"]
[SourceQuality "1"]
[TimeControl "40/5400+30:1800+30"]

1. Nf3 {[%emt 0:01:07]} c5 {[%emt 0:00:04]} 2. c4 {[%emt 0:00:08]} Nf6 {[%emt 0:01:19]} 3. Nc3 {[%emt 0:00:11]} Nc6 {[%emt 0:01:05]} 4. g3 {[%emt 0:01:31]} g6 {[%emt 0:00:25]} 5. Bg2 {[%emt 0:00:16]} Bg7 {[%emt 0:00:09]} 6. O-O {[%emt 0:00:26]} O-O {[%emt 0:00:27]} 7. d4 {[%emt 0:02:21]} cxd4 {[%emt 0:02:17]} 8. Nxd4 {[%emt 0:01:38]} e6 {[%emt 0:01:52]} 9. Ndb5 {[%emt 0:00:53] A39: Symmetrical English vs ...g6: 4 Bg2 Bg7 5 Nf3 Nf6 6 0-0 0-0 7 d4} Ne8 {[%emt 0:09:10]} 10. Bf4 {[%emt 0:04:17]} Ne5 {[%emt 0:01:46]} 11. b3 $146 {[%emt 0:07:33]} ({Predecessor:} 11. c5 a6 12. Na3 d6 13. Na4 Rb8 14. Bxe5 Bxe5 15. Nc4 Bf6 16. Nab6 d5 {0-1 (35) Timchenko,A (2110)-Frolochkin,V St Petersburg 2002}) 11... a6 {[%emt 0:03:15]} 12. Nd4 {[%emt 0:00:14]} Nc6 {[%emt 0:02:02]} 13. Nxc6 {[%emt 0:01:24]} bxc6 {[%emt 0:00:36]} 14. Rc1 {[%emt 0:00:04]} d5 {[%emt 0:00:44]} 15. cxd5 {[%emt 0:02:13]} cxd5 {[%emt 0:01:25]} 16. Nxd5 {[%emt 0:00:47]} exd5 {[%emt 0:16:25]} 17. Qxd5 {[%emt 0:02:13]} Be6 {[%emt 0:08:57]} 18. Qxa8 {[%emt 0:00:19]} Qa5 {[%emt 0:00:03]} 19. Qc6 $18 {[%emt 0:04:01]} Qxa2 {[%emt 0:02:09]} 20. Bd5 {[%emt 0:00:17]} Bh3 {[%emt 0:04:05]} 21. Rc2 {[%emt 0:00:20]} Qa3 {[%emt 0:00:53]} 22. Rd1 {[%emt 0:00:41]} h6 {[%emt 0:03:07]} 23. Be3 {[%emt 0:01:09]} Qa5 {[%emt 0:04:34]} 24. Bb6 {[%emt 0:00:51]} 1-0